[Event "VII Lorca Open 2018"]
[Site "Lorca"]
[Date "2018.12.27"]
[Round "2"]
[White "Merario Alarcon, Andres"]
[Black "Romero Romero, Sebastian"]
[Result "1-0"]
[ECO "D15"]
[WhiteElo "2404"]
[BlackElo "2180"]
[Annotator "NA"]
[PlyCount "133"]
[EventDate "2018.12.26"]
[EventType "swiss"]
[EventCountry "ESP"]
[SourceTitle "playchess.com"]
[Source "ChessBase"]
[SourceQuality "1"]
[TimeControl "5400+30"]

1. d4 {[%emt 0:00:00]} d5 {[%emt 0:00:00]} 2. c4 {[%emt 0:00:00]} c6 {[%emt 0:00:00]} 3. Nf3 {[%emt 0:00:00]} Nf6 {[%emt 0:00:01]} 4. Nc3 {[%emt 0:00:00]} a6 {[%emt 0:00:08]} 5. e3 {[%emt 0:00:16]} b5 {[%emt 0:00:16]} 6. b3 {[%emt 0:00:11]} Bg4 {[%emt 0:00:42]} 7. h3 {[%emt 0:00:08]} Bxf3 {[%emt 0:00:10]} 8. gxf3 {[%emt 0:01:29]} e6 {[%emt 0:02:37]} 9. c5 {[%emt 0:00:48]} Nbd7 {[%emt 0:02:37]} 10. f4 {[%emt 0:00:08]} g6 {[%emt 0:05:12]} 11. Qc2 {[%emt 0:03:10]} Nh5 {[%emt 0:05:39]} 12. Bb2 {[%emt 0:02:49]} Bg7 {[%emt 0:05:20]} 13. O-O-O {[%emt 0:00:26]} O-O {[%emt 0:03:38]} 14. h4 {[%emt 0:03:18]} a5 {[%emt 0:04:33]} 15. Kb1 {[%emt 0:02:30]} f5 {[%emt 0:07:18]} 16. Be2 {[%emt 0:01:08]} Ndf6 {[%emt 0:03:03]} 17. Bf3 {[%emt 0:05:20]} b4 {[%emt 0:05:10]} 18. Na4 {[%emt 0:06:37]} Rf7 {[%emt 0:04:09]} 19. Rdg1 {[%emt 0:02:04]} Qc7 {[%emt 0:02:31]} 20. Bc1 {[%emt 0:06:00]} Kh8 {[%emt 0:02:51]} 21. Bd2 {[%emt 0:00:36]} Bh6 {[%emt 0:05:29]} 22. Qc1 {[%emt 0:02:17]} Qb7 {[%emt 0:02:17]} 23. Kc2 {[%emt 0:03:41]} Rg7 {[%emt 0:04:27]} 24. Qf1 {[%emt 0:03:01]} Rag8 {[%emt 0:01:22]} 25. Qd3 {[%emt 0:03:01]} Ne4 {[%emt 0:02:28]} 26. Be1 {[%emt 0:01:29]} Nef6 {[%emt 0:05:42]} 27. Be2 {[%emt 0:01:04]} Ra8 {[%emt 0:00:05]} 28. Bd2 {[%emt 0:02:08]} Ne4 {[%emt 0:02:19]} 29. Be1 {[%emt 0:00:11]} Nef6 {[%emt 0:00:05]} 30. f3 {[%emt 0:00:53]} Ne8 {[%emt 0:03:25]} 31. Qd1 {[%emt 0:08:39]} Nc7 {[%emt 0:00:50]} 32. Bd2 {[%emt 0:00:58]} Nb5 {[%emt 0:00:39]} 33. Qf1 {[%emt 0:00:24]} Ra7 {[%emt 0:02:47]} 34. Nb6 {[%emt 0:02:47]} Nc7 {[%emt 0:00:11]} 35. Qf2 {[%emt 0:01:37]} Rg8 {[%emt 0:01:50]} 36. a3 {[%emt 0:06:46]} bxa3 {[%emt 0:02:02]} 37. Ra1 {[%emt 0:00:21]} Nb5 {[%emt 0:01:46]} 38. Bxb5 cxb5 {[%emt 0:00:08]} 39. Rxa3 {[%emt 0:00:41]} a4 40. bxa4 {[%emt 0:01:48]} bxa4 {[%emt 0:03:49]} 41. Rha1 {[%emt 0:00:43]} Qc6 {[%emt 0:00:27]} 42. Qe2 {[%emt 0:00:55]} Rb8 {[%emt 0:03:52]} 43. Bc3 {[%emt 0:01:22]} Bg7 {[%emt 0:01:14]} 44. Rxa4 {[%emt 0:06:38]} Rxa4 45. Nxa4 {[%emt 0:00:04]} Nf6 {[%emt 0:01:11]} 46. Nb6 {[%emt 0:00:39]} Nd7 {[%emt 0:00:13]} 47. Nxd7 Qxd7 {[%emt 0:00:02]} 48. Qa6 {[%emt 0:01:57]} e5 49. fxe5 {[%emt 0:01:29]} f4 {[%emt 0:04:10]} 50. e6 {[%emt 0:00:25]} Qc7 {[%emt 0:00:01]} 51. Qa7 {[%emt 0:06:07]} Rb7 {[%emt 0:00:43]} 52. Qa8+ {[%emt 0:00:25]} Rb8 {[%emt 0:00:14]} 53. Qxd5 {[%emt 0:03:35]} fxe3 {[%emt 0:00:08]} 54. Ra8 {[%emt 0:00:52]} Bf6 {[%emt 0:00:35]} 55. Kd3 {[%emt 0:02:21]} Rxa8 {[%emt 0:00:02]} 56. Qxa8+ {[%emt 0:00:02]} Kg7 {[%emt 0:00:09]} 57. c6 {[%emt 0:03:01]} Qf4 {[%emt 0:00:09]} 58. Qb7+ {[%emt 0:00:12]} Kh6 {[%emt 0:00:10]} 59. c7 {[%emt 0:00:30]} Qf5+ {[%emt 0:00:25]} 60. Qe4 {[%emt 0:00:20]} Qb5+ {[%emt 0:00:34]} 61. Kxe3 {[%emt 0:00:31]} Qc4 {[%emt 0:00:04]} 62. Ba5 {[%emt 0:03:57]} Qc1+ {[%emt 0:01:05]} 63. Kf2 {[%emt 0:00:34]} Qb2+ {[%emt 0:00:42]} 64. Kg3 {[%emt 0:00:17]} Bxd4 {[%emt 0:00:07]} 65. Qf4+ {[%emt 0:00:53]} Kg7 {[%emt 0:00:02]} 66. Qf7+ {[%emt 0:00:02]} Kh6 {[%emt 0:00:13]} 67. Bd2+ {[%emt 0:00:44]} 1-0

[Event "VII Lorca Open 2018"]
[Site "Lorca"]
[Date "2018.12.27"]
[Round "2"]
[White "Suarez Uriel, Adrian"]
[Black "Natarajan C"]
[Result "1-0"]
[ECO "A06"]
[WhiteElo "2386"]
[BlackElo "2177"]
[Annotator "NA"]
[PlyCount "94"]
[EventDate "2018.12.26"]
[EventType "swiss"]
[EventCountry "ESP"]
[SourceTitle "playchess.com"]
[Source "ChessBase"]
[SourceQuality "1"]
[TimeControl "5400+30"]

1. Nf3 {[%emt 0:04:56]} d5 {[%emt 0:00:04]} 2. b3 {[%emt 0:00:07]} c5 {[%emt 0:02:11]} 3. e3 {[%emt 0:00:08]} a6 {[%emt 0:00:15]} 4. Bb2 {[%emt 0:00:08]} Nc6 {[%emt 0:00:06]} 5. d4 {[%emt 0:00:33]} cxd4 {[%emt 0:03:05]} 6. exd4 {[%emt 0:00:18]} Bf5 {[%emt 0:02:34]} 7. Be2 {[%emt 0:00:24]} e6 {[%emt 0:03:29]} 8. O-O {[%emt 0:00:07]} Rc8 {[%emt 0:02:27]} 9. c4 {[%emt 0:00:18]} Nf6 {[%emt 0:01:05]} 10. Nc3 {[%emt 0:09:06]} Bd6 {[%emt 0:03:23]} 11. Rc1 {[%emt 0:01:48]} h6 {[%emt 0:03:15]} 12. Na4 {[%emt 0:07:08]} O-O {[%emt 0:05:08]} 13. Ne5 {[%emt 0:00:12]} Qe7 {[%emt 0:08:40]} 14. Nb6 {[%emt 0:14:27]} Rc7 {[%emt 0:02:37]} 15. Bf3 {[%emt 0:01:24]} Rd8 {[%emt 0:09:51]} 16. Qe2 {[%emt 0:04:37]} Nb8 {[%emt 0:06:51]} 17. Rfd1 {[%emt 0:03:27]} Nbd7 {[%emt 0:00:51]} 18. Nbxd7 {[%emt 0:00:40]} Nxd7 {[%emt 0:00:10]} 19. cxd5 {[%emt 0:08:38]} Rxc1 {[%emt 0:00:16]} 20. Rxc1 {[%emt 0:01:21]} exd5 {[%emt 0:00:05]} 21. Bxd5 {[%emt 0:00:17]} Nxe5 {[%emt 0:00:15]} 22. dxe5 {[%emt 0:00:05]} Bxe5 {[%emt 0:03:33]} 23. Bxf7+ {[%emt 0:00:05]} Qxf7 {[%emt 0:00:05]} 24. Qxe5 {[%emt 0:00:13]} Rd7 {[%emt 0:00:07]} 25. h3 {[%emt 0:00:25]} Qg6 {[%emt 0:00:07]} 26. Kh2 {[%emt 0:15:43]} Qd6 {[%emt 0:00:36]} 27. g4 {[%emt 0:01:06]} Qxe5+ {[%emt 0:01:12]} 28. Bxe5 {[%emt 0:00:54]} Be4 {[%emt 0:00:03]} 29. Re1 {[%emt 0:01:33]} Bc6 {[%emt 0:00:20]} 30. Re2 {[%emt 0:01:03]} Rd1 {[%emt 0:04:57]} 31. h4 {[%emt 0:03:05]} Rh1+ {[%emt 0:03:27]} 32. Kg3 {[%emt 0:00:02]} Rg1+ {[%emt 0:01:02]} 33. Kf4 {[%emt 0:00:03]} Rh1 {[%emt 0:00:24]} 34. h5 {[%emt 0:02:39]} Rh3 {[%emt 0:01:13]} 35. Bd4 {[%emt 0:02:13]} Rf3+ {[%emt 0:01:59]} 36. Ke5 {[%emt 0:00:01]} Rd3 {[%emt 0:00:30]} 37. Rc2 {[%emt 0:02:11]} Kf7 {[%emt 0:02:05]} 38. Be3 {[%emt 0:03:12]} Rd5+ {[%emt 0:00:10]} 39. Kf4 {[%emt 0:00:02]} g6 {[%emt 0:01:18]} 40. hxg6+ Kxg6 {[%emt 0:00:08]} 41. Kg3 {[%emt 0:00:22]} h5 {[%emt 0:00:39]} 42. g5 {[%emt 0:00:27]} Rd1 {[%emt 0:00:19]} 43. Kf4 {[%emt 0:03:13]} Rg1 {[%emt 0:00:51]} 44. Ke5 {[%emt 0:02:07]} Rd1 {[%emt 0:02:13]} 45. Rc4 {[%emt 0:01:57]} Rd5+ {[%emt 0:00:16]} 46. Ke6 {[%emt 0:00:02]} Ra5 {[%emt 0:04:05]} 47. Rd4 {[%emt 0:00:31]} Re5+ {[%emt 0:15:38] Rd6 Rf5 [%clk 0:11:20] Rd8 [%clk 0:07:31] Rf7 [%clk 0:10:42] f4 [%clk 0:06:49] h4 [%clk 0:07:18] Rg8 [%clk 0:06:30] h3 [%clk 0:04:23] f5 [%clk 0:06:58] Rg7 [%clk 0:04:51] Rxg7 [%clk 0:07:21] Kxg7 [%clk 0:05:09] Bf4 [%clk 0:07:43] Be8 [%clk 0:04:07] Ke7 [%clk 0:07:44] Bh5 [%clk 0:04:23] Be5 [%clk 0:08:01] Kg8 [%clk 0:04:00] g6 [%clk 0:08:10] b5 [%clk 0:01:51] b4 [%clk 0:08:36] h2 [%clk 0:02:05] Bxh2 [%clk 0:08:59]} 1-0

[Event "VII Lorca Open 2018"]
[Site "Lorca"]
[Date "2018.12.27"]
[Round "2"]
[White "Low, Zhen Yu Cyrus"]
[Black "Carbonell Sancho, Marc"]
[Result "1-0"]
[ECO "C07"]
[WhiteElo "2384"]
[BlackElo "2153"]
[Annotator "NA"]
[PlyCount "73"]
[EventDate "2018.12.26"]
[EventType "swiss"]
[EventCountry "ESP"]
[SourceTitle "playchess.com"]
[Source "ChessBase"]
[SourceQuality "1"]
[TimeControl "5400+30"]

1. e4 {[%emt 0:00:00]} e6 {[%emt 0:00:00]} 2. d4 {[%emt 0:00:00]} d5 {[%emt 0:00:00]} 3. Nd2 {[%emt 0:00:12]} c5 {[%emt 0:00:00]} 4. Ngf3 {[%emt 0:00:06]} cxd4 {[%emt 0:00:00]} 5. Nxd4 {[%emt 0:00:07]} Nc6 {[%emt 0:00:00]} 6. Bb5 {[%emt 0:00:05]} Bd7 {[%emt 0:00:04]} 7. Nxc6 {[%emt 0:00:05]} bxc6 {[%emt 0:00:03]} 8. Bd3 {[%emt 0:00:05]} Bd6 {[%emt 0:00:08] C07: French Tarrasch: 3...c5, 4 Ngf3 and 4 exd5 Qxd5} 9. Qe2 {[%emt 0:08:10]} Ne7 {[%emt 0:00:06]} 10. Nf3 {[%emt 0:02:12]} Ng6 {[%emt 0:04:58]} (10... h6 11. c4 O-O 12. O-O a5 13. Re1 a4 14. Bd2 Rb8 15. Bc3 Bb4 16. Ne5 Bxc3 17. bxc3 {½-½ (52) Navara,D (2740)-Kovalenko,I (2639) Katowice 2017}) 11. e5 {[%emt 0:02:05]} Bc7 {[%emt 0:00:07]} 12. O-O {[%emt 0:00:41]} O-O {[%emt 0:00:07]} 13. h4 $146 {[%emt 0:05:44]} ({Predecessor:} 13. c4 f6 14. Bxg6 hxg6 15. b3 g5 16. Ba3 {½-½ (74) Solak,D (2635)-Lupulescu,C (2618) Baku 2016}) 13... f6 {[%emt 0:13:14]} 14. Bxg6 {[%emt 0:02:56]} hxg6 {[%emt 0:02:28]} 15. Bf4 {[%emt 0:00:09]} Qe8 {[%emt 0:11:48]} 16. Bg3 {[%emt 0:02:27]} c5 {[%emt 0:07:47]} 17. Rfe1 {[%emt 0:05:36]} Bb5 {[%emt 0:13:36]} 18. Qd2 {[%emt 0:17:43]} Rc8 {[%emt 0:06:23]} 19. c3 {[%emt 0:00:38]} a5 {[%emt 0:02:31]} 20. Qe3 $11 {[%emt 0:01:14]} Bd7 {[%emt 0:10:25]} 21. Qxc5 {[%emt 0:08:08]} fxe5 {[%emt 0:02:41]} 22. Qe3 {[%emt 0:03:21]} e4 {[%emt 0:00:24]} 23. Bxc7 {[%emt 0:00:14]} exf3 {[%emt 0:01:36]} 24. Bd6 {[%emt 0:00:10]} Rf5 {[%emt 0:00:30]} 25. g3 {[%emt 0:00:40]} Rc4 {[%emt 0:08:20]} 26. Bf4 {[%emt 0:14:41]} g5 27. Bxg5 {[%emt 0:01:03]} Rg4 {[%emt 0:00:11]} 28. Qd3 {[%emt 0:10:06]} Qh5 {[%emt 0:00:08]} 29. Re3 {[%emt 0:00:37]} d4 {[%emt 0:13:21]} 30. cxd4 {[%emt 0:02:26]} Bb5 {[%emt 0:00:02]} 31. Qb3 {[%emt 0:01:31]} Be2 {[%emt 0:02:08]} 32. Qxe6+ {[%emt 0:00:49]} Rf7 {[%emt 0:00:01]} 33. Qe5 {[%emt 0:02:43]} Qg6 {[%emt 0:02:02]} 34. Rc1 {[%emt 0:00:34]} Kh7 {[%emt 0:00:30]} 35. d5 {[%emt 0:02:12]} Rb7 {[%emt 0:00:59]} 36. Qe6 {[%emt 0:02:19]} Rxb2 {[%emt 0:00:45]} 37. Qxg4 {[%emt 0:00:27]} 1-0

[Event "VII Lorca Open 2018"]
[Site "Lorca"]
[Date "2018.12.27"]
[Round "2"]
[White "Aguilar, Andres"]
[Black "Vazquez Igarza, Renier"]
[Result "1-0"]
[ECO "A20"]
[WhiteElo "2307"]
[BlackElo "2570"]
[Annotator "ChessBase"]
[PlyCount "93"]
[EventDate "2018.12.26"]
[EventType "swiss"]
[EventCountry "ESP"]
[SourceTitle "playchess.com"]
[Source "ChessBase"]
[SourceQuality "1"]
[TimeControl "5400+30"]

1. c4 {[%emt 0:00:00]} e5 {[%emt 0:00:14]} 2. g3 {[%emt 0:00:00]} Nf6 {[%emt 0:00:10]} 3. Bg2 {[%emt 0:00:12]} d5 {[%emt 0:00:07]} 4. cxd5 {[%emt 0:00:07]} Nxd5 {[%emt 0:00:04]} 5. Nf3 {[%emt 0:00:16]} Nc6 {[%emt 0:00:08]} 6. O-O {[%emt 0:00:10]} Nb6 {[%emt 0:00:11]} 7. d3 {[%emt 0:00:23]} Be7 {[%emt 0:01:13]} 8. Nbd2 {[%emt 0:00:56]} g5 {[%emt 0:00:55]} 9. b3 {[%emt 0:00:17]} g4 {[%emt 0:00:32]} 10. Ne1 {[%emt 0:00:06]} Be6 {[%emt 0:05:04]} 11. Bxc6+ {[%emt 0:02:07]} bxc6 {[%emt 0:00:03]} 12. Bb2 {[%emt 0:00:10]} f6 {[%emt 0:07:11]} 13. Rc1 {[%emt 0:02:11]} Qd5 {[%emt 0:03:21]} 14. Qc2 {[%emt 0:12:24]} Bd7 {[%emt 0:00:39]} 15. Ng2 {[%emt 0:00:22]} h5 {[%emt 0:01:14]} 16. e4 {[%emt 0:03:26]} Qe6 {[%emt 0:19:09]} 17. f4 {[%emt 0:05:19]} gxf3 {[%emt 0:13:28]} 18. Nxf3 {[%emt 0:00:50]} c5 {[%emt 0:04:45]} 19. Nfh4 {[%emt 0:03:02]} Bb5 {[%emt 0:01:42]} 20. Ng6 {[%emt 0:26:36]} O-O-O {[%emt 0:00:34]} 21. Rfd1 {[%emt 0:00:41]} Rhg8 {[%emt 0:12:31]} 22. Nxe7+ {[%emt 0:05:29]} Qxe7 {[%emt 0:00:06]} 23. Nh4 {[%emt 0:00:39]} Bd7 {[%emt 0:11:14]} 24. Ba3 {[%emt 0:04:19]} Bg4 {[%emt 0:00:03]} 25. Rd2 {[%emt 0:04:34]} Nd7 {[%emt 0:00:01]} 26. b4 {[%emt 0:03:19]} Qe6 {[%emt 0:00:01]} 27. Qa4 {[%emt 0:02:14]} Kb7 {[%emt 0:03:29]} 28. bxc5 {[%emt 0:03:25]} Ka8 {[%emt 0:00:07]} 29. c6 {[%emt 0:03:20]} Nb6 {[%emt 0:00:13]} 30. Qa6 {[%emt 0:00:17]} Rb8 {[%emt 0:00:17]} 31. Rc5 {[%emt 0:03:27]} Qc8 {[%emt 0:04:32]} 32. Qa5 {[%emt 0:00:18]} Rd8 {[%emt 0:00:41]} 33. Ng6 {[%emt 0:03:44]} Re8 {[%emt 0:00:52]} 34. Rb5 {[%emt 0:02:15]} h4 {[%emt 0:03:14]} 35. Ne7 {[%emt 0:01:05]} Rxe7 36. Bxe7 {[%emt 0:00:09]} hxg3 37. hxg3 {[%emt 0:00:10]} a6 {[%emt 0:00:05]} 38. Bxf6 {[%emt 0:00:36]} Ka7 {[%emt 0:00:25]} 39. Rb3 {[%emt 0:01:13]} Qe8 {[%emt 0:00:28]} 40. Qxe5 {[%emt 0:01:35]} Qxc6 {[%emt 0:00:28]} 41. Rc3 {[%emt 0:00:13]} Qa4 {[%emt 0:00:20]} 42. Rxc7+ {[%emt 0:00:07]} Ka8 {[%emt 0:00:00]} 43. Qc3 {[%emt 0:02:01]} Bd7 {[%emt 0:00:09]} 44. Bd4 {[%emt 0:03:19]} Qb5 {[%emt 0:01:08]} 45. Rb2 {[%emt 0:01:10]} Qg5 {[%emt 0:00:12]} 46. Bf2 {[%emt 0:00:06]} Qh5 {[%emt 0:01:30]} 47. Rxd7 {[%emt 0:00:14]} 1-0

[Event "VII Lorca Open 2018"]
[Site "Lorca"]
[Date "2018.12.27"]
[Round "2"]
[White "Gavarrete, Nahun"]
[Black "Grigoryan, Karen H."]
[Result "0-1"]
[ECO "A29"]
[WhiteElo "2304"]
[BlackElo "2557"]
[Annotator "RC"]
[PlyCount "50"]
[EventDate "2018.12.26"]
[EventType "swiss"]
[EventCountry "ESP"]
[SourceTitle "playchess.com"]
[Source "ChessBase"]
[SourceQuality "1"]
[TimeControl "5400+30"]

1. c4 {[%emt 0:05:14]} e5 {[%emt 0:01:25]} 2. g3 {[%emt 0:00:41]} Nf6 {[%emt 0:00:51]} 3. Bg2 {[%emt 0:00:04]} d5 {[%emt 0:01:32]} 4. cxd5 {[%emt 0:00:09]} Nxd5 {[%emt 0:00:04]} 5. Nc3 {[%emt 0:00:08]} Nb6 {[%emt 0:00:07]} 6. Nf3 {[%emt 0:00:37]} Nc6 {[%emt 0:00:06]} 7. O-O {[%emt 0:00:07]} Be7 {[%emt 0:00:05]} 8. Rb1 {[%emt 0:04:58]} g5 {[%emt 0:02:58]} 9. d3 {[%emt 0:03:17]} g4 {[%emt 0:04:39]} 10. Ne1 {[%emt 0:02:05]} h5 {[%emt 0:01:37]} 11. Nc2 {[%emt 0:01:30]} h4 {[%emt 0:02:31]} 12. b4 {[%emt 0:01:42]} hxg3 {[%emt 0:06:28]} 13. hxg3 {[%emt 0:01:51]} a6 {[%emt 0:08:07]} 14. a4 {[%emt 0:01:54]} a5 {[%emt 0:05:14]} 15. b5 {[%emt 0:20:22]} Nd4 {[%emt 0:00:31]} 16. Nxd4 {[%emt 0:05:38]} exd4 {[%emt 0:00:14]} 17. Ne4 {[%emt 0:00:16]} f5 {[%emt 0:03:08]} 18. Nd2 {[%emt 0:00:08]} Be6 {[%emt 0:01:17]} 19. Nb3 {[%emt 0:15:28]} Bd5 {[%emt 0:02:32]} 20. Bb2 {[%emt 0:07:51]} Bxg2 {[%emt 0:01:49]} 21. Kxg2 {[%emt 0:00:04]} Qd5+ {[%emt 0:00:08]} 22. f3 {[%emt 0:01:33]} Rh3 {[%emt 0:04:07]} 23. Bxd4 {[%emt 0:08:30]} Bd6 {[%emt 0:00:56]} 24. Bf2 {[%emt 0:01:21]} O-O-O {[%emt 0:02:14]} 25. e4 {[%emt 0:04:16]} fxe4 {[%emt 0:01:22]} 0-1

[Event "VII Lorca Open 2018"]
[Site "Lorca"]
[Date "2018.12.27"]
[Round "2"]
[White "Orantes Taboada, Francisco"]
[Black "Gascon Del Nogal, Jose Rafael"]
[Result "1/2-1/2"]
[ECO "E62"]
[WhiteElo "2295"]
[BlackElo "2484"]
[Annotator "ChessBase"]
[PlyCount "161"]
[EventDate "2018.12.26"]
[EventType "swiss"]
[EventCountry "ESP"]
[SourceTitle "playchess.com"]
[Source "ChessBase"]
[SourceQuality "1"]
[TimeControl "5400+30"]

1. Nf3 {[%emt 0:00:00]} d6 {[%emt 0:00:04]} 2. d4 {[%emt 0:00:08]} Nf6 {[%emt 0:00:27]} 3. g3 {[%emt 0:00:13]} g6 {[%emt 0:05:53]} 4. Bg2 {[%emt 0:01:09]} Bg7 {[%emt 0:00:04]} 5. c4 {[%emt 0:00:20]} O-O {[%emt 0:00:09]} 6. O-O {[%emt 0:00:09]} c6 {[%emt 0:01:15]} 7. Nc3 {[%emt 0:01:24]} Qa5 {[%emt 0:00:03]} 8. e4 {[%emt 0:17:43]} Bg4 {[%emt 0:00:06]} 9. h3 {[%emt 0:00:23]} Bxf3 {[%emt 0:00:06]} 10. Bxf3 {[%emt 0:00:42]} e5 {[%emt 0:08:15]} 11. dxe5 {[%emt 0:02:26]} dxe5 {[%emt 0:00:07]} 12. Qa4 {[%emt 0:01:12]} Qxa4 {[%emt 0:10:23]} 13. Nxa4 {[%emt 0:00:49]} Nbd7 {[%emt 0:00:07]} 14. Be3 {[%emt 0:06:46]} Rfd8 {[%emt 0:02:37]} 15. Rfd1 {[%emt 0:03:39]} Bf8 {[%emt 0:00:10]} 16. c5 {[%emt 0:16:33]} Be7 {[%emt 0:01:32]} 17. Rd3 {[%emt 0:13:43]} b5 {[%emt 0:01:13]} 18. cxb6 {[%emt 0:06:25]} axb6 {[%emt 0:00:04]} 19. Nc3 {[%emt 0:01:48]} Bc5 {[%emt 0:08:58]} 20. Rad1 {[%emt 0:10:07]} Bxe3 {[%emt 0:00:06]} 21. fxe3 {[%emt 0:00:03]} Kf8 {[%emt 0:00:06]} 22. Rd6 {[%emt 0:00:17]} Rac8 {[%emt 0:00:36]} 23. b4 {[%emt 0:01:24]} Ke7 {[%emt 0:01:02]} 24. a4 {[%emt 0:01:21]} Ne8 {[%emt 0:14:58]} 25. R6d2 {[%emt 0:02:02]} Nb8 {[%emt 0:00:05]} 26. Rxd8 {[%emt 0:01:49]} Rxd8 {[%emt 0:01:38]} 27. Rxd8 {[%emt 0:00:03]} Kxd8 {[%emt 0:00:03]} 28. Be2 {[%emt 0:00:06]} Nd6 {[%emt 0:04:26]} 29. Kf2 {[%emt 0:00:39]} Kc7 {[%emt 0:00:40]} 30. Bd3 {[%emt 0:06:01]} Nd7 {[%emt 0:08:13]} 31. Kf3 {[%emt 0:02:48]} Nf6 {[%emt 0:02:15]} 32. g4 {[%emt 0:01:26]} h6 {[%emt 0:00:49]} 33. Bb1 {[%emt 0:01:34]} g5 {[%emt 0:15:19]} 34. Ba2 {[%emt 0:00:20]} Nd7 {[%emt 0:04:58]} 35. b5 {[%emt 0:01:17]} Nf6 {[%emt 0:00:43]} 36. Bb3 {[%emt 0:00:22]} Nd7 {[%emt 0:07:59]} 37. Ba2 {[%emt 0:00:42]} Nc5 {[%emt 0:00:32]} 38. bxc6 {[%emt 0:00:08]} Kxc6 {[%emt 0:00:17]} 39. Bd5+ {[%emt 0:00:01]} Kc7 {[%emt 0:00:09]} 40. Ke2 {[%emt 0:00:21]} Kb8 {[%emt 0:00:59]} 41. Bc6 {[%emt 0:00:27]} Ka7 {[%emt 0:00:18]} 42. Nb5+ {[%emt 0:01:11]} Nxb5 {[%emt 0:00:04]} 43. axb5 {[%emt 0:00:03]} Kb8 {[%emt 0:00:10]} 44. Kd2 {[%emt 0:00:23]} Kc7 {[%emt 0:00:03]} 45. Kc3 {[%emt 0:00:07]} Kd6 {[%emt 0:00:04]} 46. Kc4 {[%emt 0:00:26]} Na4 {[%emt 0:01:52]} 47. Kb3 {[%emt 0:00:09]} Nc5+ {[%emt 0:00:14]} 48. Kc4 {[%emt 0:00:03]} f6 {[%emt 0:02:02]} 49. Bd5 {[%emt 0:00:31]} Ke7 {[%emt 0:00:33]} 50. Bc6 {[%emt 0:00:26]} Ne6 {[%emt 0:00:06]} 51. Kd5 {[%emt 0:00:42]} Nc7+ {[%emt 0:00:04]} 52. Kc4 {[%emt 0:00:05]} Kf7 {[%emt 0:00:02]} 53. Bd7 {[%emt 0:00:13]} Ke7 {[%emt 0:00:20]} 54. Bc6 {[%emt 0:00:34]} Kd6 {[%emt 0:00:44]} 55. Bb7 {[%emt 0:00:16]} Ne8 {[%emt 0:00:00]} 56. Bc6 {[%emt 0:00:18]} Ng7 {[%emt 0:00:05]} 57. Bd5 {[%emt 0:00:24]} h5 {[%emt 0:00:31]} 58. Bf7 {[%emt 0:00:12]} h4 {[%emt 0:00:28]} 59. Bg6 {[%emt 0:00:47]} Ne6 {[%emt 0:00:07]} 60. Bf5 {[%emt 0:00:11]} Nc5 {[%emt 0:00:47]} 61. Kc3 {[%emt 0:00:09]} Na4+ {[%emt 0:01:40]} 62. Kb3 {[%emt 0:00:05]} Nc5+ {[%emt 0:00:08]} 63. Kc4 {[%emt 0:00:09]} Kc7 {[%emt 0:02:18]} 64. Kc3 {[%emt 0:00:22]} Nb7 {[%emt 0:00:04]} 65. Kc4 {[%emt 0:00:44]} Kd6 {[%emt 0:01:08]} 66. Kb4 {[%emt 0:00:18]} Ke7 {[%emt 0:00:08]} 67. Bh7 {[%emt 0:04:57]} Nd6 {[%emt 0:00:41]} 68. Bg6 {[%emt 0:00:06]} Kf8 {[%emt 0:00:19]} 69. Bh7 {[%emt 0:00:05]} Kf7 {[%emt 0:00:54]} 70. Bf5 {[%emt 0:00:06]} Ke7 {[%emt 0:00:13]} 71. Bg6 {[%emt 0:00:36]} Ke6 {[%emt 0:00:54]} 72. Bh7 {[%emt 0:00:14]} Kd7 {[%emt 0:00:38]} 73. Bf5+ {[%emt 0:00:21]} Kc7 {[%emt 0:00:02]} 74. Bg6 {[%emt 0:00:14]} Nb7 {[%emt 0:00:02]} 75. Bf5 {[%emt 0:00:22]} Kd6 {[%emt 0:00:12]} 76. Kc4 {[%emt 0:00:10]} Nc5 {[%emt 0:00:04]} 77. Kc3 {[%emt 0:00:16]} Nb7 {[%emt 0:01:06]} 78. Kc4 {[%emt 0:00:09]} Nd8 {[%emt 0:00:24]} 79. Bg6 {[%emt 0:00:40]} Ne6 {[%emt 0:00:40]} 80. Bf5 {[%emt 0:00:16]} Nc5 {[%emt 0:00:53] Kd4 [%clk 0:00:00] Kd5+ Kc4+ [%clk 0:00:00] Kd6} 81. Bg6 {[%emt 0:04:20]} 1/2-1/2

[Event "VII Lorca Open 2018"]
[Site "Lorca"]
[Date "2018.12.27"]
[Round "2"]
[White "Tudela Corbalan, Carlos"]
[Black "Franco Ocampos, Zenon"]
[Result "0-1"]
[ECO "A09"]
[WhiteElo "2252"]
[BlackElo "2477"]
[Annotator "ChessBase"]
[PlyCount "80"]
[EventDate "2018.12.26"]
[EventType "swiss"]
[EventCountry "ESP"]
[SourceTitle "playchess.com"]
[Source "ChessBase"]
[SourceQuality "1"]
[TimeControl "5400+30"]

1. Nf3 {[%emt 0:03:23]} d5 {[%emt 0:00:00]} 2. c4 {[%emt 0:01:37]} d4 {[%emt 0:00:50]} 3. e3 {[%emt 0:03:53]} Nc6 {[%emt 0:00:05]} 4. b4 {[%emt 0:03:25]} dxe3 {[%emt 0:10:01]} 5. fxe3 {[%emt 0:00:15]} Nxb4 {[%emt 0:00:09]} 6. d4 {[%emt 0:02:26]} e6 {[%emt 0:02:43]} 7. a3 {[%emt 0:07:16]} Nc6 {[%emt 0:01:27]} 8. Bd3 {[%emt 0:02:48]} g6 {[%emt 0:07:58]} 9. O-O {[%emt 0:03:31]} Bg7 {[%emt 0:01:54]} 10. Bb2 {[%emt 0:02:49]} Nge7 {[%emt 0:02:17]} 11. Qe2 {[%emt 0:00:35]} O-O {[%emt 0:00:33]} 12. Nbd2 {[%emt 0:04:13]} Nf5 {[%emt 0:03:49]} 13. Qf2 {[%emt 0:06:03]} b6 {[%emt 0:09:49]} 14. Rfe1 {[%emt 0:13:38]} a5 {[%emt 0:06:43]} 15. Rad1 {[%emt 0:02:41]} a4 {[%emt 0:02:23]} 16. Ne4 {[%emt 0:05:28]} Nd6 {[%emt 0:07:48]} 17. d5 {[%emt 0:03:26]} exd5 {[%emt 0:00:25]} 18. cxd5 {[%emt 0:04:50]} Na5 {[%emt 0:00:55]} 19. Bxg7 {[%emt 0:01:04]} Kxg7 {[%emt 0:00:03]} 20. Qb2+ {[%emt 0:02:17]} f6 {[%emt 0:00:05]} 21. Nxd6 {[%emt 0:05:46]} Qxd6 {[%emt 0:02:02]} 22. e4 {[%emt 0:00:24]} Kg8 {[%emt 0:10:37]} 23. e5 {[%emt 0:09:33]} fxe5 24. Rxe5 {[%emt 0:00:31]} Bg4 {[%emt 0:04:17]} 25. Qe2 {[%emt 0:02:50]} Nb3 {[%emt 0:04:16]} 26. Bc4 {[%emt 0:01:19]} Nc5 {[%emt 0:00:22]} 27. Re1 {[%emt 0:00:56]} Rf7 {[%emt 0:01:39]} 28. Qe3 {[%emt 0:01:40]} Bxf3 {[%emt 0:01:03]} 29. gxf3 {[%emt 0:00:04]} Raf8 {[%emt 0:00:18]} 30. Re8 {[%emt 0:02:28]} Rxe8 {[%emt 0:00:46]} 31. Qxe8+ {[%emt 0:00:08]} Kg7 {[%emt 0:00:09]} 32. Kg2 {[%emt 0:01:04]} Qf4 {[%emt 0:03:52]} 33. Qe2 {[%emt 0:00:23]} Rf5 {[%emt 0:00:26]} 34. Qb2+ {[%emt 0:01:32]} Kh6 {[%emt 0:00:11]} 35. Qe2 {[%emt 0:00:11]} Nd7 {[%emt 0:00:43]} 36. Qe4 {[%emt 0:01:27]} Qg5+ {[%emt 0:01:44]} 37. Kh1 {[%emt 0:00:38]} Nf6 {[%emt 0:01:29]} 38. Qd3 {[%emt 0:00:27]} Qf4 {[%emt 0:01:37]} 39. Rf1 {[%emt 0:01:47]} Re5 {[%emt 0:02:22]} 40. Kg2 {[%emt 0:00:41]} Rh5 {[%emt 0:12:10]} 0-1